[Event "Titled Tuesday Blitz November 22 Early 2022"]
[White "Osmak, Yuliia"]
[Black "Kopylov, Alexander A."]
[WhiteFideId "14101602"]
[BlackFideId "4164857"]
[WhiteElo "2328"]
[BlackElo "2436"]
[Result "0-1"]
[Round "10"]
[TimeControl "180+1"]
[Date "2022.11.23"]
[WhiteClock "0:00:07"]
[BlackClock "0:00:14"]

1. d4 {[%clk 0:03:00]}  Nf6 {[%clk 0:02:59]} 2. c4 {[%clk 0:03:00]}  e6 {[%clk 0:02:59]} 3. Nc3 {[%clk 0:02:54]}  Bb4 {[%clk 0:02:59]} 4. e3 {[%clk 0:02:55]}  O-O {[%clk 0:02:57]} 5. Ne2 {[%clk 0:02:55]}  Re8 {[%clk 0:02:56]} 6. a3 {[%clk 0:02:54]}  Bf8 {[%clk 0:02:57]} 7. Ng3 {[%clk 0:02:52]}  c5 {[%clk 0:02:54]} 8. d5 {[%clk 0:02:50]}  exd5 {[%clk 0:02:54]} 9. cxd5 {[%clk 0:02:49]}  d6 {[%clk 0:02:55]} 10. Be2 {[%clk 0:02:41]}  a6 {[%clk 0:02:53]} 11. a4 {[%clk 0:02:41]}  Nbd7 {[%clk 0:02:53]} 12. O-O {[%clk 0:02:40]}  b6 {[%clk 0:02:50]} 13. e4 {[%clk 0:02:39]}  Bb7 {[%clk 0:02:44]} 14. f4 {[%clk 0:02:39]}  Qc7 {[%clk 0:02:41]} 15. Bf3 {[%clk 0:02:35]}  Rad8 {[%clk 0:02:41]} 16. b3 {[%clk 0:02:20]}  g6 {[%clk 0:02:38]} 17. Bb2 {[%clk 0:02:20]}  Bg7 {[%clk 0:02:38]} 18. Qc2 {[%clk 0:02:16]}  Qb8 {[%clk 0:02:28]} 19. Rae1 {[%clk 0:02:07]}  b5 {[%clk 0:02:28]} 20. axb5 {[%clk 0:01:42]}  axb5 {[%clk 0:02:29]} 21. h3 {[%clk 0:01:21]}  b4 {[%clk 0:02:09]} 22. Nd1 {[%clk 0:01:20]}  Ba6 {[%clk 0:02:09]} 23. Be2 {[%clk 0:01:18]}  c4 {[%clk 0:02:03]} 24. Bxc4 {[%clk 0:01:15]}  Bxc4 {[%clk 0:01:54]} 25. Qxc4 {[%clk 0:01:14]}  Rc8 {[%clk 0:01:50]} 26. Qa6 {[%clk 0:01:09]}  Nc5 {[%clk 0:01:49]} 27. Qa1 {[%clk 0:00:54]}  Nxb3 {[%clk 0:01:44]} 28. Qa2 {[%clk 0:00:51]}  Qb6+ {[%clk 0:01:25]} 29. Kh2 {[%clk 0:00:48]}  Nd2 {[%clk 0:01:24]} 30. Rf2 {[%clk 0:00:30]}  Ra8 {[%clk 0:00:31]} 31. Bd4 {[%clk 0:00:29]}  Rxa2 {[%clk 0:00:18]} 32. Bxb6 {[%clk 0:00:28]}  b3 {[%clk 0:00:19]} 33. Nc3 {[%clk 0:00:26]}  Rc2 {[%clk 0:00:17]} 34. Nb1 {[%clk 0:00:18]}  Ndxe4 {[%clk 0:00:16]} 35. Nxe4 {[%clk 0:00:16]}  Rxe4 {[%clk 0:00:16]} 36. Rxe4 {[%clk 0:00:15]}  Nxe4 {[%clk 0:00:17]} 37. Rf1 {[%clk 0:00:14]}  b2 {[%clk 0:00:15]} 38. f5 {[%clk 0:00:11]}  Be5+ {[%clk 0:00:15]} 39. Kg1 {[%clk 0:00:11]}  Nc3 {[%clk 0:00:15]} 40. Nxc3 {[%clk 0:00:10]}  Bxc3 {[%clk 0:00:16]} 41. Be3 {[%clk 0:00:10]}  Re2 {[%clk 0:00:15]} 42. Bh6 {[%clk 0:00:09]}  Re1 {[%clk 0:00:15]} 43. fxg6 {[%clk 0:00:07]}  hxg6 {[%clk 0:00:14]} 0-1


[Site "https://www.chess.com"]

[Event "Titled Tuesday Blitz November 22 Early 2022"]
[White "Ovchinnikov, Vsevolod"]
[Black "Reprintsev, Alexander"]
[WhiteFideId "24176842"]
[BlackFideId "14100541"]
[WhiteElo "2376"]
[BlackElo "2230"]
[Result "0-1"]
[Round "10"]
[TimeControl "180+1"]
[Date "2022.11.23"]
[WhiteClock "0:00:01"]
[BlackClock "0:00:11"]

1. d4 {[%clk 0:02:59]}  d5 {[%clk 0:03:00]} 2. c4 {[%clk 0:02:58]}  e5 {[%clk 0:02:55]} 3. dxe5 {[%clk 0:02:58]}  d4 {[%clk 0:02:55]} 4. Nf3 {[%clk 0:02:59]}  Nc6 {[%clk 0:02:54]} 5. g3 {[%clk 0:02:59]}  Nge7 {[%clk 0:02:53]} 6. Bg2 {[%clk 0:02:03]}  Ng6 {[%clk 0:02:50]} 7. Bg5 {[%clk 0:02:04]}  Qd7 {[%clk 0:02:49]} 8. O-O {[%clk 0:01:58]}  h6 {[%clk 0:02:48]} 9. Bf4 {[%clk 0:01:29]}  f6 {[%clk 0:02:43]} 10. e6 {[%clk 0:01:17]}  Qd8 {[%clk 0:02:34]} 11. e3 {[%clk 0:01:13]}  Nxf4 {[%clk 0:01:38]} 12. exf4 {[%clk 0:01:12]}  Bxe6 {[%clk 0:01:35]} 13. Re1 {[%clk 0:01:10]}  Kf7 {[%clk 0:01:35]} 14. Nbd2 {[%clk 0:01:06]}  Qd7 {[%clk 0:01:21]} 15. a3 {[%clk 0:00:48]}  a5 {[%clk 0:01:16]} 16. Nh4 {[%clk 0:00:43]}  g6 {[%clk 0:01:07]} 17. Rxe6 {[%clk 0:00:12]}  Kxe6 {[%clk 0:00:59]} 18. Qg4+ {[%clk 0:00:12]}  f5 {[%clk 0:00:55]} 19. Re1+ {[%clk 0:00:06]}  Kd6 {[%clk 0:00:54]} 20. Qxg6+ {[%clk 0:00:06]}  Kc5 {[%clk 0:00:54]} 21. Nxf5 {[%clk 0:00:05]}  Kb6 {[%clk 0:00:53]} 22. Nh4 {[%clk 0:00:03]}  Bc5 {[%clk 0:00:47]} 23. Bd5 {[%clk 0:00:04]}  Rhe8 {[%clk 0:00:46]} 24. Rb1 {[%clk 0:00:04]}  Ka7 {[%clk 0:00:45]} 25. b4 {[%clk 0:00:04]}  Bb6 {[%clk 0:00:41]} 26. Nb3 {[%clk 0:00:04]}  d3 {[%clk 0:00:37]} 27. Qxd3 {[%clk 0:00:02]}  axb4 {[%clk 0:00:33]} 28. c5 {[%clk 0:00:03]}  Rad8 {[%clk 0:00:26]} 29. cxb6+ {[%clk 0:00:03]}  cxb6 {[%clk 0:00:27]} 30. Rd1 {[%clk 0:00:03]}  Ne7 {[%clk 0:00:23]} 31. Nf3 {[%clk 0:00:01]}  Qxd5 {[%clk 0:00:22]} 32. Qxd5 {[%clk 0:00:01]}  Rxd5 {[%clk 0:00:22]} 33. Ra1 {[%clk 0:00:02]}  bxa3 {[%clk 0:00:21]} 34. Rxa3+ {[%clk 0:00:03]}  Kb8 {[%clk 0:00:21]} 35. Kg2 {[%clk 0:00:03]}  Nc6 {[%clk 0:00:21]} 36. Ra2 {[%clk 0:00:03]}  Rd3 {[%clk 0:00:19]} 37. Nc1 {[%clk 0:00:03]}  Rc3 {[%clk 0:00:18]} 38. Ra1 {[%clk 0:00:03]}  b5 {[%clk 0:00:16]} 39. Rb1 {[%clk 0:00:03]}  b4 {[%clk 0:00:16]} 40. Na2 {[%clk 0:00:03]}  Rc4 {[%clk 0:00:15]} 41. Rb2 {[%clk 0:00:03]}  Ree4 {[%clk 0:00:13]} 42. h4 {[%clk 0:00:03]}  Rc5 {[%clk 0:00:12]} 43. Kh3 {[%clk 0:00:03]}  Rec4 {[%clk 0:00:12]} 44. Rb3 {[%clk 0:00:01]}  Rb5 {[%clk 0:00:11]} 0-1


[Site "https://www.chess.com"]

[Event "Titled Tuesday Blitz November 22 Early 2022"]
[White "Ozen, Bahadir"]
[Black "Artemenko, Oleg"]
[WhiteFideId "6337058"]
[BlackFideId "14201798"]
[WhiteElo "2503"]
[BlackElo "2287"]
[Result "1-0"]
[Round "10"]
[TimeControl "180+1"]
[Date "2022.11.22"]
[WhiteClock "0:00:43"]
[BlackClock "0:00:20"]

1. g3 {[%clk 0:03:00]}  d5 {[%clk 0:02:59]} 2. Nf3 {[%clk 0:03:01]}  Nf6 {[%clk 0:02:59]} 3. Bg2 {[%clk 0:03:01]}  Bg4 {[%clk 0:03:00]} 4. h3 {[%clk 0:03:01]}  Bh5 {[%clk 0:02:59]} 5. O-O {[%clk 0:03:01]}  Nbd7 {[%clk 0:02:59]} 6. d3 {[%clk 0:02:59]}  e5 {[%clk 0:02:58]} 7. Nh4 {[%clk 0:02:55]}  Bc5 {[%clk 0:02:53]} 8. Qe1 {[%clk 0:02:50]}  O-O {[%clk 0:02:52]} 9. e4 {[%clk 0:02:46]}  dxe4 {[%clk 0:02:48]} 10. dxe4 {[%clk 0:02:47]}  Ne8 {[%clk 0:02:47]} 11. b4 {[%clk 0:02:30]}  Bb6 {[%clk 0:02:45]} 12. Bb2 {[%clk 0:02:28]}  Nd6 {[%clk 0:02:44]} 13. Nd2 {[%clk 0:02:27]}  a5 {[%clk 0:02:39]} 14. a3 {[%clk 0:02:25]}  Qg5 {[%clk 0:02:32]} 15. Kh2 {[%clk 0:02:22]}  axb4 {[%clk 0:02:31]} 16. Nhf3 {[%clk 0:02:17]}  Bxf3 {[%clk 0:02:22]} 17. Nxf3 {[%clk 0:02:16]}  Qe7 {[%clk 0:02:19]} 18. axb4 {[%clk 0:02:15]}  f6 {[%clk 0:02:05]} 19. Qe2 {[%clk 0:02:09]}  Qe6 {[%clk 0:02:02]} 20. Nd2 {[%clk 0:02:09]}  Bd4 {[%clk 0:01:48]} 21. c3 {[%clk 0:02:08]}  Ba7 {[%clk 0:01:48]} 22. h4 {[%clk 0:02:08]}  Nb6 {[%clk 0:01:46]} 23. Bh3 {[%clk 0:02:07]}  Qf7 {[%clk 0:01:47]} 24. Bc1 {[%clk 0:02:00]}  Nbc4 {[%clk 0:01:44]} 25. Nxc4 {[%clk 0:02:00]}  Nxc4 {[%clk 0:01:45]} 26. Rd1 {[%clk 0:01:49]}  Nd6 {[%clk 0:01:33]} 27. Kg2 {[%clk 0:01:45]}  Kh8 {[%clk 0:01:27]} 28. h5 {[%clk 0:01:19]}  h6 {[%clk 0:01:24]} 29. Rd5 {[%clk 0:01:10]}  Bb6 {[%clk 0:00:52]} 30. Rxa8 {[%clk 0:01:02]}  Rxa8 {[%clk 0:00:53]} 31. c4 {[%clk 0:01:03]}  Bd4 {[%clk 0:00:37]} 32. c5 {[%clk 0:01:02]}  Ne8 {[%clk 0:00:28]} 33. Rd7 {[%clk 0:01:02]}  Qg8 {[%clk 0:00:23]} 34. Re7 {[%clk 0:00:56]}  b6 {[%clk 0:00:20]} 35. Be6 {[%clk 0:00:48]}  Qh7 {[%clk 0:00:20]} 36. Bf5 {[%clk 0:00:44]}  Kg8 {[%clk 0:00:20]} 37. Bxh7+ {[%clk 0:00:43]} 1-0


[Site "https://www.chess.com"]

[Event "Titled Tuesday Blitz November 22 Early 2022"]
[White "Papasimakopoulos, Alexandros"]
[Black "Yurovskykh, Oleksandr"]
[WhiteFideId "4244125"]
[BlackFideId "14134020"]
[WhiteElo "2365"]
[BlackElo "2265"]
[Result "1-0"]
[Round "10"]
[TimeControl "180+1"]
[Date "2022.11.23"]
[WhiteClock "0:00:19"]
[BlackClock "0:00:01"]

1. d4 {[%clk 0:03:00]}  g6 {[%clk 0:02:54]} 2. c4 {[%clk 0:03:00]}  Bg7 {[%clk 0:02:55]} 3. e4 {[%clk 0:03:00]}  d6 {[%clk 0:02:55]} 4. Nc3 {[%clk 0:03:00]}  e5 {[%clk 0:02:55]} 5. Nge2 {[%clk 0:03:00]}  Nc6 {[%clk 0:02:54]} 6. Be3 {[%clk 0:03:00]}  Nh6 {[%clk 0:02:42]} 7. d5 {[%clk 0:02:58]}  Ne7 {[%clk 0:02:38]} 8. f3 {[%clk 0:02:56]}  f5 {[%clk 0:02:37]} 9. Qd2 {[%clk 0:02:56]}  Nf7 {[%clk 0:02:30]} 10. O-O-O {[%clk 0:02:55]}  f4 {[%clk 0:02:22]} 11. Bf2 {[%clk 0:02:55]}  c5 {[%clk 0:02:11]} 12. dxc6 {[%clk 0:02:55]}  bxc6 {[%clk 0:02:12]} 13. Kb1 {[%clk 0:02:54]}  Be6 {[%clk 0:01:53]} 14. Nc1 {[%clk 0:02:54]}  a6 {[%clk 0:01:45]} 15. g3 {[%clk 0:02:50]}  Bh6 {[%clk 0:01:38]} 16. g4 {[%clk 0:02:50]}  c5 {[%clk 0:01:32]} 17. Nd5 {[%clk 0:02:41]}  Nc6 {[%clk 0:01:31]} 18. h4 {[%clk 0:02:40]}  Bg7 {[%clk 0:01:22]} 19. g5 {[%clk 0:02:32]}  Nd4 {[%clk 0:01:07]} 20. Qd3 {[%clk 0:02:14]}  Rb8 {[%clk 0:00:55]} 21. Bh3 {[%clk 0:02:13]}  Bxh3 {[%clk 0:00:51]} 22. Rxh3 {[%clk 0:02:13]}  Qd7 {[%clk 0:00:45]} 23. Rh2 {[%clk 0:02:09]}  Nd8 {[%clk 0:00:38]} 24. h5 {[%clk 0:02:06]}  gxh5 {[%clk 0:00:38]} 25. Rdh1 {[%clk 0:02:03]}  N8e6 {[%clk 0:00:37]} 26. Rxh5 {[%clk 0:02:01]}  Qb7 {[%clk 0:00:33]} 27. b3 {[%clk 0:02:00]}  Qf7 {[%clk 0:00:28]} 28. R1h3 {[%clk 0:01:51]}  Qg6 {[%clk 0:00:26]} 29. Rh6 {[%clk 0:01:44]}  Qxg5 {[%clk 0:00:18]} 30. Rxe6+ {[%clk 0:01:44]}  Nxe6 {[%clk 0:00:19]} 31. Nc7+ {[%clk 0:01:38]}  Nxc7 {[%clk 0:00:18]} 32. Qxd6 {[%clk 0:01:38]}  Qe7 {[%clk 0:00:17]} 33. Qc6+ {[%clk 0:01:33]}  Kf7 {[%clk 0:00:18]} 34. Bxc5 {[%clk 0:01:30]}  Qd8 {[%clk 0:00:16]} 35. Bd6 {[%clk 0:01:25]}  Rc8 {[%clk 0:00:14]} 36. c5 {[%clk 0:01:22]}  Ne6 {[%clk 0:00:14]} 37. Qb7+ {[%clk 0:01:22]}  Kg6 {[%clk 0:00:12]} 38. Rh1 {[%clk 0:01:21]}  Qf6 {[%clk 0:00:07]} 39. Rg1+ {[%clk 0:01:19]}  Ng5 {[%clk 0:00:08]} 40. Nd3 {[%clk 0:01:17]}  Rce8 {[%clk 0:00:06]} 41. Qxa6 {[%clk 0:01:09]}  h5 {[%clk 0:00:06]} 42. Qb5 {[%clk 0:00:53]}  h4 {[%clk 0:00:06]} 43. a4 {[%clk 0:00:51]}  h3 {[%clk 0:00:07]} 44. Rh1 {[%clk 0:00:52]}  h2 {[%clk 0:00:07]} 45. Rxh2 {[%clk 0:00:53]}  Rxh2 {[%clk 0:00:05]} 46. Qxe8+ {[%clk 0:00:53]}  Qf7 {[%clk 0:00:05]} 47. Qb8 {[%clk 0:00:43]}  Rh1+ {[%clk 0:00:03]} 48. Kb2 {[%clk 0:00:43]}  Nxf3 {[%clk 0:00:04]} 49. a5 {[%clk 0:00:36]}  Rh2+ {[%clk 0:00:04]} 50. Ka3 {[%clk 0:00:36]}  Nd4 {[%clk 0:00:04]} 51. Bxe5 {[%clk 0:00:32]}  Nc6 {[%clk 0:00:04]} 52. Qd6+ {[%clk 0:00:30]}  Kh5 {[%clk 0:00:02]} 53. Bxg7 {[%clk 0:00:25]}  Rh3 {[%clk 0:00:02]} 54. Nxf4+ {[%clk 0:00:20]}  Kg4 {[%clk 0:00:02]} 55. Nxh3 {[%clk 0:00:21]}  Nxa5 {[%clk 0:00:03]} 56. Qd3 {[%clk 0:00:18]}  Qa7 {[%clk 0:00:02]} 57. Kb2 {[%clk 0:00:18]}  Nc6 {[%clk 0:00:01]} 58. Nf2+ {[%clk 0:00:18]}  Kf4 {[%clk 0:00:01]} 59. Bc3 {[%clk 0:00:19]} 1-0


[Site "https://www.chess.com"]

[Event "Titled Tuesday Blitz November 22 Early 2022"]
[White "Pranav, V"]
[Black "Aradhya, Garg"]
[WhiteFideId "25060783"]
[BlackFideId "25006746"]
[WhiteElo "2430"]
[BlackElo "2223"]
[Result "1-0"]
[Round "10"]
[TimeControl "180+1"]
[Date "2022.11.22"]
[WhiteClock "0:00:57"]
[BlackClock "0:00:10"]

1. e4 {[%clk 0:03:00]}  e5 {[%clk 0:03:00]} 2. Nf3 {[%clk 0:03:01]}  Nc6 {[%clk 0:03:00]} 3. Bc4 {[%clk 0:03:02]}  Nf6 {[%clk 0:02:59]} 4. Ng5 {[%clk 0:03:02]}  d5 {[%clk 0:02:59]} 5. exd5 {[%clk 0:03:03]}  Na5 {[%clk 0:02:59]} 6. Bb5+ {[%clk 0:03:03]}  Bd7 {[%clk 0:02:59]} 7. Qe2 {[%clk 0:03:03]}  Be7 {[%clk 0:03:00]} 8. Nf3 {[%clk 0:03:03]}  Nxd5 {[%clk 0:02:56]} 9. Nxe5 {[%clk 0:03:01]}  Bxb5 {[%clk 0:02:54]} 10. Qxb5+ {[%clk 0:03:02]}  c6 {[%clk 0:02:54]} 11. Qe2 {[%clk 0:03:02]}  O-O {[%clk 0:02:48]} 12. O-O {[%clk 0:03:03]}  Nb4 {[%clk 0:02:48]} 13. d3 {[%clk 0:02:54]}  c5 {[%clk 0:02:44]} 14. a3 {[%clk 0:02:44]}  Nbc6 {[%clk 0:02:43]} 15. Nf3 {[%clk 0:02:37]}  Bf6 {[%clk 0:02:41]} 16. Nc3 {[%clk 0:02:36]}  Re8 {[%clk 0:02:41]} 17. Qd1 {[%clk 0:02:36]}  Bxc3 {[%clk 0:01:52]} 18. bxc3 {[%clk 0:02:33]}  Qf6 {[%clk 0:01:53]} 19. Bd2 {[%clk 0:02:30]}  h6 {[%clk 0:01:50]} 20. Rb1 {[%clk 0:02:26]}  b6 {[%clk 0:01:50]} 21. Re1 {[%clk 0:02:14]}  Nb7 {[%clk 0:01:50]} 22. h3 {[%clk 0:01:57]}  Nd6 {[%clk 0:01:50]} 23. Nh2 {[%clk 0:01:56]}  Qf5 {[%clk 0:01:20]} 24. Qg4 {[%clk 0:01:53]}  Qxg4 {[%clk 0:01:20]} 25. hxg4 {[%clk 0:01:53]}  Rad8 {[%clk 0:01:11]} 26. f3 {[%clk 0:01:51]}  f6 {[%clk 0:01:10]} 27. Nf1 {[%clk 0:01:51]}  Ne5 {[%clk 0:01:06]} 28. Ne3 {[%clk 0:01:46]}  Kf7 {[%clk 0:01:03]} 29. a4 {[%clk 0:01:41]}  Nb7 {[%clk 0:00:48]} 30. c4 {[%clk 0:01:39]}  Nc6 {[%clk 0:00:39]} 31. Nf5 {[%clk 0:01:38]}  Nd4 {[%clk 0:00:36]} 32. Nxd4 {[%clk 0:01:36]}  cxd4 {[%clk 0:00:37]} 33. Rxe8 {[%clk 0:01:33]}  Rxe8 {[%clk 0:00:37]} 34. Kf2 {[%clk 0:01:34]}  Re5 {[%clk 0:00:28]} 35. Rb5 {[%clk 0:01:32]}  Ke7 {[%clk 0:00:17]} 36. f4 {[%clk 0:01:28]}  Rxb5 {[%clk 0:00:17]} 37. axb5 {[%clk 0:01:29]}  Ke6 {[%clk 0:00:16]} 38. Kf3 {[%clk 0:01:27]}  Nd6 {[%clk 0:00:15]} 39. Bb4 {[%clk 0:01:23]}  g6 {[%clk 0:00:15]} 40. Bxd6 {[%clk 0:00:50]}  Kxd6 {[%clk 0:00:16]} 41. Ke4 {[%clk 0:00:51]}  Kc5 {[%clk 0:00:17]} 42. g3 {[%clk 0:00:52]}  h5 {[%clk 0:00:07]} 43. gxh5 {[%clk 0:00:52]}  gxh5 {[%clk 0:00:08]} 44. f5 {[%clk 0:00:52]}  Kb4 {[%clk 0:00:08]} 45. Kxd4 {[%clk 0:00:53]}  Ka3 {[%clk 0:00:08]} 46. Kc3 {[%clk 0:00:53]}  Ka2 {[%clk 0:00:08]} 47. d4 {[%clk 0:00:54]}  Ka3 {[%clk 0:00:08]} 48. d5 {[%clk 0:00:54]}  Ka4 {[%clk 0:00:08]} 49. d6 {[%clk 0:00:55]}  Ka5 {[%clk 0:00:08]} 50. d7 {[%clk 0:00:54]}  Ka4 {[%clk 0:00:09]} 51. d8=Q {[%clk 0:00:55]}  Ka3 {[%clk 0:00:09]} 52. Qd6+ {[%clk 0:00:56]}  Ka2 {[%clk 0:00:09]} 53. Qb4 {[%clk 0:00:56]}  Ka1 {[%clk 0:00:10]} 54. Qb2# {[%clk 0:00:57]} 1-0


[Site "https://www.chess.com"]

[Event "Titled Tuesday Blitz November 22 Early 2022"]
[White "Pultinevicius, Paulius"]
[Black "Nakamura, Hikaru"]
[WhiteFideId "12809390"]
[BlackFideId "2016192"]
[WhiteElo "2493"]
[BlackElo "2909"]
[Result "0-1"]
[Round "10"]
[TimeControl "180+1"]
[Date "2022.11.22"]
[WhiteClock "0:00:07"]
[BlackClock "0:00:11"]

1. d4 {[%clk 0:03:00]}  g6 {[%clk 0:02:59]} 2. c4 {[%clk 0:03:01]}  Bg7 {[%clk 0:02:58]} 3. e4 {[%clk 0:03:02]}  d6 {[%clk 0:02:58]} 4. Nc3 {[%clk 0:03:01]}  Nd7 {[%clk 0:02:58]} 5. Nf3 {[%clk 0:03:01]}  Ngf6 {[%clk 0:02:59]} 6. Be2 {[%clk 0:03:00]}  O-O {[%clk 0:02:58]} 7. O-O {[%clk 0:03:01]}  e5 {[%clk 0:02:59]} 8. Be3 {[%clk 0:03:01]}  Ng4 {[%clk 0:02:58]} 9. Bg5 {[%clk 0:03:01]}  f6 {[%clk 0:02:59]} 10. Bd2 {[%clk 0:03:02]}  Re8 {[%clk 0:02:57]} 11. dxe5 {[%clk 0:02:51]}  dxe5 {[%clk 0:02:53]} 12. h3 {[%clk 0:02:49]}  Nh6 {[%clk 0:02:53]} 13. Be3 {[%clk 0:02:49]}  c6 {[%clk 0:02:52]} 14. b4 {[%clk 0:02:45]}  Qe7 {[%clk 0:02:49]} 15. Qb3 {[%clk 0:02:44]}  Nf8 {[%clk 0:02:48]} 16. Rad1 {[%clk 0:02:42]}  Be6 {[%clk 0:02:48]} 17. Qb2 {[%clk 0:02:20]}  Nf7 {[%clk 0:02:47]} 18. c5 {[%clk 0:02:15]}  f5 {[%clk 0:02:48]} 19. Rfe1 {[%clk 0:01:39]}  h5 {[%clk 0:02:40]} 20. exf5 {[%clk 0:01:29]}  gxf5 {[%clk 0:02:41]} 21. Qc2 {[%clk 0:01:27]}  a5 {[%clk 0:02:40]} 22. b5 {[%clk 0:01:25]}  h4 {[%clk 0:02:30]} 23. bxc6 {[%clk 0:01:20]}  bxc6 {[%clk 0:02:30]} 24. Na4 {[%clk 0:01:19]}  Ng6 {[%clk 0:02:16]} 25. Nb6 {[%clk 0:01:19]}  Rad8 {[%clk 0:02:16]} 26. Bc4 {[%clk 0:01:16]}  Bf6 {[%clk 0:01:28]} 27. a4 {[%clk 0:01:07]}  Kh7 {[%clk 0:01:09]} 28. Kh1 {[%clk 0:01:04]}  Bxc4 {[%clk 0:01:01]} 29. Nxc4 {[%clk 0:01:02]}  e4 {[%clk 0:00:59]} 30. Nd4 {[%clk 0:01:00]}  Bxd4 {[%clk 0:00:57]} 31. Bxd4 {[%clk 0:00:50]}  Nf4 {[%clk 0:00:57]} 32. f3 {[%clk 0:00:31]}  Nd3 {[%clk 0:00:54]} 33. Qc3 {[%clk 0:00:17]}  Nxe1 {[%clk 0:00:50]} 34. Rxe1 {[%clk 0:00:18]}  Qd7 {[%clk 0:00:39]} 35. Bf2 {[%clk 0:00:18]}  exf3 {[%clk 0:00:33]} 36. Qxf3 {[%clk 0:00:19]}  Rxe1+ {[%clk 0:00:33]} 37. Bxe1 {[%clk 0:00:20]}  Qd3 {[%clk 0:00:30]} 38. Ne3 {[%clk 0:00:18]}  Qb1 {[%clk 0:00:22]} 39. Qh5+ {[%clk 0:00:15]}  Nh6 {[%clk 0:00:22]} 40. Qxh4 {[%clk 0:00:13]}  Re8 {[%clk 0:00:23]} 41. Qf2 {[%clk 0:00:11]}  f4 {[%clk 0:00:23]} 42. Nc2 {[%clk 0:00:10]}  f3 {[%clk 0:00:21]} 43. gxf3 {[%clk 0:00:09]}  Qd1 {[%clk 0:00:20]} 44. Ne3 {[%clk 0:00:08]}  Qc1 {[%clk 0:00:18]} 45. Ng2 {[%clk 0:00:09]}  Nf5 {[%clk 0:00:18]} 46. Kh2 {[%clk 0:00:09]}  Qd1 {[%clk 0:00:17]} 47. Qb2 {[%clk 0:00:04]}  Qxf3 {[%clk 0:00:13]} 48. Qb7+ {[%clk 0:00:03]}  Re7 {[%clk 0:00:12]} 49. Qc8 {[%clk 0:00:03]}  Rxe1 {[%clk 0:00:07]} 50. Nxe1 {[%clk 0:00:03]}  Qg3+ {[%clk 0:00:07]} 51. Kh1 {[%clk 0:00:03]}  Qxe1+ {[%clk 0:00:08]} 52. Kg2 {[%clk 0:00:04]}  Qe2+ {[%clk 0:00:09]} 53. Kg1 {[%clk 0:00:04]}  Qe3+ {[%clk 0:00:09]} 54. Kf1 {[%clk 0:00:02]}  Qxh3+ {[%clk 0:00:10]} 55. Ke1 {[%clk 0:00:02]}  Qe3+ {[%clk 0:00:10]} 56. Kd1 {[%clk 0:00:02]}  Qd4+ {[%clk 0:00:10]} 57. Ke1 {[%clk 0:00:02]}  Qe5+ {[%clk 0:00:10]} 58. Kd1 {[%clk 0:00:02]}  Qd5+ {[%clk 0:00:10]} 59. Ke1 {[%clk 0:00:03]}  Qxc5 {[%clk 0:00:09]} 60. Qd7+ {[%clk 0:00:03]}  Qe7+ {[%clk 0:00:09]} 61. Qxe7+ {[%clk 0:00:02]}  Nxe7 {[%clk 0:00:10]} 62. Kd2 {[%clk 0:00:03]}  Kg6 {[%clk 0:00:11]} 63. Kc3 {[%clk 0:00:04]}  Kf5 {[%clk 0:00:11]} 64. Kd4 {[%clk 0:00:05]}  Ke6 {[%clk 0:00:12]} 65. Kc5 {[%clk 0:00:05]}  Ke5 {[%clk 0:00:13]} 66. Kb6 {[%clk 0:00:06]}  Kd4 {[%clk 0:00:13]} 67. Kxa5 {[%clk 0:00:06]}  c5 {[%clk 0:00:14]} 68. Kb6 {[%clk 0:00:06]}  c4 {[%clk 0:00:14]} 69. a5 {[%clk 0:00:06]}  c3 {[%clk 0:00:13]} 70. a6 {[%clk 0:00:07]}  c2 {[%clk 0:00:11]} 0-1


[Site "https://www.chess.com"]

[Event "Titled Tuesday Blitz November 22 Early 2022"]
[White "Sadubayev, Airat"]
[Black "Zainullina, Nataliya"]
[WhiteFideId "13713264"]
[BlackFideId "4145488"]
[WhiteElo "2160"]
[BlackElo "2112"]
[Result "1-0"]
[Round "10"]
[TimeControl "180+1"]
[Date "2022.11.23"]
[WhiteClock "0:00:10"]
[BlackClock "0:01:17"]

1. d4 {[%clk 0:03:00]}  Nf6 {[%clk 0:02:59]} 2. c4 {[%clk 0:03:01]}  g6 {[%clk 0:02:59]} 3. Nc3 {[%clk 0:02:59]}  d5 {[%clk 0:02:59]} 4. cxd5 {[%clk 0:02:59]}  Nxd5 {[%clk 0:02:59]} 5. e4 {[%clk 0:02:59]}  Nxc3 {[%clk 0:03:00]} 6. bxc3 {[%clk 0:03:00]}  Bg7 {[%clk 0:03:01]} 7. Nf3 {[%clk 0:03:01]}  O-O {[%clk 0:03:02]} 8. Be3 {[%clk 0:03:00]}  c5 {[%clk 0:03:02]} 9. Qd2 {[%clk 0:02:53]}  Nc6 {[%clk 0:03:03]} 10. d5 {[%clk 0:02:41]}  Qa5 {[%clk 0:02:56]} 11. Rc1 {[%clk 0:02:31]}  Ne5 {[%clk 0:02:45]} 12. Nxe5 {[%clk 0:02:30]}  Bxe5 {[%clk 0:02:46]} 13. f4 {[%clk 0:02:30]}  Bg7 {[%clk 0:02:46]} 14. Be2 {[%clk 0:02:19]}  e5 {[%clk 0:02:46]} 15. fxe5 {[%clk 0:02:00]}  Bxe5 {[%clk 0:02:45]} 16. O-O {[%clk 0:02:00]}  Qc7 {[%clk 0:02:45]} 17. g3 {[%clk 0:01:51]}  Bxg3 {[%clk 0:02:38]} 18. Bf3 {[%clk 0:01:28]}  Be5 {[%clk 0:02:28]} 19. Rcd1 {[%clk 0:01:23]}  Qd6 {[%clk 0:02:27]} 20. Qf2 {[%clk 0:01:16]}  b6 {[%clk 0:02:26]} 21. c4 {[%clk 0:01:14]}  f5 {[%clk 0:02:21]} 22. Bh6 {[%clk 0:01:05]}  Bg7 {[%clk 0:01:59]} 23. Bxg7 {[%clk 0:01:01]}  Kxg7 {[%clk 0:02:00]} 24. Qb2+ {[%clk 0:00:59]}  Kg8 {[%clk 0:01:55]} 25. e5 {[%clk 0:00:59]}  Qe7 {[%clk 0:01:54]} 26. d6 {[%clk 0:00:46]}  Qg5+ {[%clk 0:01:54]} 27. Kh1 {[%clk 0:00:44]}  Rb8 {[%clk 0:01:55]} 28. Bd5+ {[%clk 0:00:41]}  Kh8 {[%clk 0:01:51]} 29. e6+ {[%clk 0:00:39]}  Qf6 {[%clk 0:01:49]} 30. Qxf6+ {[%clk 0:00:38]}  Rxf6 {[%clk 0:01:49]} 31. e7 {[%clk 0:00:33]}  Bd7 {[%clk 0:01:46]} 32. Bg2 {[%clk 0:00:20]}  Kg7 {[%clk 0:01:43]} 33. Rfe1 {[%clk 0:00:20]}  Re8 {[%clk 0:01:37]} 34. Rd2 {[%clk 0:00:17]}  Kf7 {[%clk 0:01:36]} 35. Bd5+ {[%clk 0:00:16]}  Kg7 {[%clk 0:01:36]} 36. Bb7 {[%clk 0:00:14]}  Rb8 {[%clk 0:01:32]} 37. Ba6 {[%clk 0:00:13]}  Bc6+ {[%clk 0:01:29]} 38. Kg1 {[%clk 0:00:12]}  Bd7 {[%clk 0:01:23]} 39. Bb5 {[%clk 0:00:11]}  Bxb5 {[%clk 0:01:20]} 40. cxb5 {[%clk 0:00:12]}  Kf7 {[%clk 0:01:16]} 41. d7 {[%clk 0:00:11]}  Re6 {[%clk 0:01:16]} 42. Rxe6 {[%clk 0:00:10]}  Kxe6 {[%clk 0:01:17]} 43. e8=Q+ {[%clk 0:00:10]} 1-0


[Site "https://www.chess.com"]